Cogmind - Beta 11.1 @@@ ROGUE MODE // 2022.05.27 @ 13:47:51 Player: Demise Result: Destroyed by 8R-AWN with 8R-AWN's Boregun Performance ------------- Evolutions (1) 500 Regions Visited (5) 1000 Robots Destroyed (79) 395 Value Destroyed (1854) 1854 Prototype IDs (45) 900 Alien Tech Used (0) 0 Bonus (476) 476 TOTAL SCORE: 5125 Bonus ------- High Alert Combat Kills 87 Follower Combat Kills 89 Aligned with FarCom 300 Cogmind --------- Core Integrity 0/400 Matter 196/300 Energy 100/100 System Corruption 5% Temperature Cool (0) Movement Walking (125) Ox1 Location -9/Exiles Parts ------- > --- POWER (1) -------- (None) > --- PROPULSION (2) --- Potential Leg Potential Leg > --- UTILITY (4) ------ Huge Storage Unit Salvage Targeting Computer Core Shielding Core Shielding > --- WEAPON (2) ------- AWS/Gauss > --- INVENTORY (25) --- Wheel Wheel Splice Drone Bay (6/6) Beam Rifle Light Assault Rifle Light Assault Rifle Missile Launcher Plasma Cutter Plasma Cutter Peak State ------------ > --- POWER ------------ (None) > --- PROPULSION ------- Potential Leg Potential Leg > --- UTILITY ---------- Huge Storage Unit Salvage Targeting Computer Core Shielding Core Shielding > --- WEAPON ----------- AWS/Gauss > --- INVENTORY -------- Wheel Wheel Splice Drone Bay Beam Rifle Light Assault Rifle Light Assault Rifle Missile Launcher Plasma Cutter Plasma Cutter [Rating: 43] Favorites ----------- Power Heavy Ion Engine Engine Heavy Ion Engine Power Core Light Nuclear Core Propulsion Compact Wheel Treads Light Treads Leg Potential Leg Wheel Compact Wheel Utility Huge Storage Unit Device Seismic Detector Storage Huge Storage Unit Processor Salvage Targeting Computer Protection Core Shielding Weapon Heavy Assault Rifle Energy Gun Medium Laser Ballistic Gun Heavy Assault Rifle Launcher Missile Launcher Special Weapon Plasma Cutter Special Melee Weapon Datajack Build | -11 -10 -10 -9 -9 -9 ------- Run | Scr Mat Min Mat Min Exi Slots Evolved 2 | . . . 2 . . Power . | . . . . . . Propulsion . | . . . . . . Utility 2 | . . . 2 . . Weapon . | . . . . . . Parts Attached 100 | 7 23 14 33 5 18 Power 6 | 1 1 1 3 . . Engine 5 | 1 1 1 2 . . Core 1 | . . . 1 . . Reactor . | . . . . . . Propulsion 21 | 2 6 3 6 2 2 Treads 2 | . 2 . . . . Leg 2 | . . . . . 2 Wheel 17 | 2 4 3 6 2 . Hover . | . . . . . . Flight . | . . . . . . Utility 48 | 2 12 9 17 3 5 Device 21 | 1 6 5 7 1 1 Storage 6 | 1 4 1 . . . Processor 4 | . 2 . 1 . 1 Hackware . | . . . . . . Protection 17 | . . 3 9 2 3 Artifact . | . . . . . . Weapon 25 | 2 4 1 7 . 11 Energy Gun 2 | . 2 . . . . Energy Cannon . | . . . . . . Ballistic Gun 19 | 2 2 1 7 . 7 Ballistic Cannon . | . . . . . . Launcher 1 | . . . . . 1 Special Weapon 2 | . . . . . 2 Impact Weapon . | . . . . . . Slashing Weapon . | . . . . . . Piercing Weapon . | . . . . . . Special Melee Weapon 1 | . . . . . 1 Unidentified Prototypes 2 | . . 1 1 . . Parts Lost 23 | . 4 2 3 3 11 Power 1 | . . . . . 1 Propulsion 5 | . 2 1 . . 2 Utility 10 | . . 1 2 3 4 Weapon 7 | . 2 . 1 . 4 Highest Loss Streak 6 | . 4 2 1 1 6 To Critical Strikes 6 | . . . . . 6 Average Slot Usage (%) 97 | . 95 99 97 99 93 Engine 11 | . 12 14 9 11 9 Wheel 23 | . 26 27 21 22 20 Device 7 | . 10 11 5 5 9 Storage 12 | . 14 14 11 11 11 Protection 17 | . . 2 26 27 22 Energy Gun 2 | . 11 2 . . . Ballistic Gun 19 | . 16 25 21 22 5 Naked Turns . | . . . . . . Heaviest Build 105 | 14 89 99 102 103 105 Greatest Support 40 | 32 40 32 28 28 22 Greatest Overweight (x) 6 | 2 4 3 6 4 4 Average Overweight (x) 2 | . . 2 3 3 4 Largest Inventory Capacity 25 | 8 25 25 25 25 25 Average Capacity 23 | 7 19 24 25 25 25 Most Carried 25 | 6 20 25 25 25 25 Average Carried 21 | 2 13 23 24 24 21 Final Capacity 25 | 8 20 25 25 25 25 Final Carried 25 | 5 20 25 25 25 9 Class Distribution -------------------- 71% | Mutant 28% | Scavenger-Mutant Dominant Class ---------------- Mutant | -10/Materials Scavenger-Mutant | -10/Mines Scavenger-Mutant | -9/Materials Mutant | -9/Mines Mutant | -9/Exiles Resources | -11 -10 -10 -9 -9 -9 ----------- Run | Scr Mat Min Mat Min Exi Matter Collected 2436 | 286 382 280 833 462 193 Remotely . | . . . . . . Salvage Created 3002 | 121 621 304 1349 602 5 Parts 180 | 5 38 22 83 31 1 Haulers Intercepted 6 | . 2 . 4 . . Recyclers Shooed 3 | . . . 3 . . Parts Field Recycled . | . . . . . . Retrieved Matter . | . . . . . . Parts Self-Destructed . | . . . . . . Prevented . | . . . . . . Kills | -11 -10 -10 -9 -9 -9 ------- Run | Scr Mat Min Mat Min Exi Combat Hostiles Destroyed 59 | . 9 5 26 14 5 Guns 54 | . 9 5 26 14 . AOE 5 | . . . . . 5 Classes Destroyed 13 | 2 5 1 2 2 1 Worker 4 | . 2 1 1 . . Builder 2 | . . . . 2 . Tunneler 3 | 1 . 2 . . . Hauler 6 | . 2 . 4 . . Recycler 4 | 1 . . 1 2 . Mechanic 1 | . . . 1 . . Operator 2 | . 2 . . . . Watcher 5 | . 2 . 3 . . Swarmer 12 | . . . 8 4 . Grunt 31 | . 9 4 11 7 . Sentry 8 | . . 1 7 . . Zionite 1 | . . . . . 1 Assembled 8 | . . . . 3 5 Best Kill Streak 6 | 2 3 2 4 5 6 Combat Bots Only 5 | . 2 2 4 3 5 Max Kills in Single Turn 3 | 1 1 1 2 2 3 Gunslinging 1 | . . . . 1 . Exploded 3 | . . . . . 3 Melee . | . . . . . . Uniques/NPCs Destroyed . | . . . . . . Combat | -11 -10 -10 -9 -9 -9 -------- Run | Scr Mat Min Mat Min Exi Damage Taken 4081 | . 735 358 1182 481 1325 Core 607 | . 101 105 141 66 194 Absorbed by Shields 266 | . . . 81 82 103 Redirected to Shielding 178 | . . 10 116 11 41 Regen/Repaired (Parts) 521 | . 92 . 429 . . Core Remaining (%) 58 | 100 . 17 . . . Volleys Fired 348 | 4 78 31 129 60 46 Largest 2 | 2 2 2 2 2 2 Hottest 90 | 40 90 70 46 46 46 Shots Fired 665 | 8 147 62 258 118 72 Gun 658 | 8 147 62 258 118 65 Cannon . | . . . . . . Launcher 7 | . . . . . 7 Special . | . . . . . . Kinetic 607 | 8 98 60 258 118 65 Thermal 51 | . 49 2 . . . Explosive 7 | . . . . . 7 Electromagnetic . | . . . . . . Robot Hit Streak 24 | 2 11 9 24 12 14 Robot Miss Streak 6 | 2 4 2 6 6 3 Penetration Max . | . . . . . . Secondary Targets 4 | . . . . 4 . Max Gunslinging Chain 1 | . . . . 1 . Shots Hit Robots 428 | 3 87 46 172 64 56 Core Hits 164 | 2 34 18 63 26 21 Critical Kills 1 | . 1 . . . . Critical Parts Destroyed 2 | . 1 . . 1 . Critical Strikes 3 | . 2 . . 1 . Destroy 3 | . 2 . . 1 . Melee Attacks 4 | . . . . . 4 Impact . | . . . . . . Slashing . | . . . . . . Piercing . | . . . . . . Sneak Attacks 4 | . . . . . 4 Combat Hostiles . | . . . . . . Follow-up Attacks . | . . . . . . Damage Inflicted 5798 | 38 955 548 2039 1010 1208 Guns 5075 | 38 955 548 2039 1010 485 Cannons . | . . . . . . Explosions 533 | . . . . . 533 Melee . | . . . . . . Ramming 190 | . . . . . 190 Kinetic 4700 | 38 593 535 2039 1010 485 Thermal 375 | . 362 13 . . . Explosive 533 | . . . . . 533 Electromagnetic . | . . . . . . Impact . | . . . . . . Slashing . | . . . . . . Piercing . | . . . . . . Highest Corruption 5 | . 2 2 5 5 5 Average Corruption 3 | . 2 2 3 5 5 Corruption Purged . | . . . . . . Corruption Blocked . | . . . . . . Effects 82 | . 10 13 9 31 19 Message Errors 21 | . 4 4 2 4 7 Matter Fused 21 | . . 4 1 10 6 Heat Flow Errors 7 | . 1 1 1 2 2 Energy Discharges 14 | . 2 2 1 6 3 Parts Rejected 1 | . . . 1 . . Data Loss (minor) 11 | . 2 2 3 4 . Data Loss (major) 2 | . . . . 1 1 Misfires 2 | . . . . 2 . Alerts 3 | . 1 . . 2 . Overload Shots . | . . . . . . Overflow Damage 21 | . . . . . 21 Projectiles . | . . . . . . Explosions 21 | . . . . . 21 Melee . | . . . . . . Knockbacks 3 | . . . . . 3 Impact 3 | . . . . . 3 Kinetic . | . . . . . . Secondary . | . . . . . . Self-Inflicted Damage 96 | . . . . . 96 Shots 2 | . . . . . 2 Rammed . | . . . . . . Targets Rammed 25 | . . . . . 25 Kicked 25 | . . . . . 25 Crushed . | . . . . . . Highest Temperature 247 | . 198 164 87 247 209 Average Temperature 31 | . 42 27 14 36 73 Received Heat Transfer 1203 | . 405 207 501 76 14 Effects 1 | . . . . 1 . Interference 1 | . . . . 1 . Siege Activations . | . . . . . . Robots Corrupted . | . . . . . . Combat Hostiles . | . . . . . . Parts Fried 4 | . . . 4 . . Impact Corruptions . | . . . . . . Robots Melted . | . . . . . . Combat Hostiles . | . . . . . . Parts Melted 2 | . 1 1 . . . Heat Transferred 1003 | . 966 37 . . . Parts Sabotaged . | . . . . . . Parts Stolen . | . . . . . . Parts Stripped . | . . . . . . Power Chain Reactions . | . . . . . . Missiles Intercepted . | . . . . . . Alert | -11 -10 -10 -9 -9 -9 ------- Run | Scr Mat Min Mat Min Exi Peak Influence 540 | 10 225 106 540 430 . Initial 210 | . 6 36 3 210 . Average 207 | 3 91 44 320 280 . Maximum Alert Level 2 | . 1 . 2 2 . Low Security (%) 46 | 100 91 100 13 10 . Level 1 38 | . 8 . 56 70 . Level 2 15 | . . . 30 18 . Level 3 . | . . . . . . Level 4 . | . . . . . . Level 5 . | . . . . . . High Security . | . . . . . . Max Security . | . . . . . . Squads Dispatched 10 | . 5 . 5 . . Investigation 7 | . 3 . 4 . . Extermination . | . . . . . . Reinforcement 3 | . 2 . 1 . . Assault . | . . . . . . Garrison . | . . . . . . Intercept . | . . . . . . Searches Triggered . | . . . . . . Construction Impeded . | . . . . . . Haulers Reinforced . | . . . . . . Active Scanning Responses . | . . . . . . Cargo Convoy Interrupts . | . . . . . . Stealth | -11 -10 -10 -9 -9 -9 --------- Run | Scr Mat Min Mat Min Exi Distress Signals 2 | . 1 . 1 . . Communications Jammed . | . . . . . . Distress Signals . | . . . . . . Times Spotted 107 | . 20 6 50 23 8 Peak Tracking Total 10 | . 3 2 6 3 10 Tactical Retreats 10 | . . . 3 7 . Traps | -11 -10 -10 -9 -9 -9 ------- Run | Scr Mat Min Mat Min Exi Traps Triggered 6 | . 2 . 4 . . Indirectly . | . . . . . . Trap Hack Attempts . | . . . . . . Triggered . | . . . . . . Disarmed . | . . . . . . Reprogrammed 6 | . . . 6 . . Reused 1 | . . . 1 . . Traps Extracted . | . . . . . . Installed . | . . . . . . Triggered 1 | . . . 1 . . Exploded 3 | . . . . . 3 Machines | -11 -10 -10 -9 -9 -9 ---------- Run | Scr Mat Min Mat Min Exi Machines Disabled 8 | . 1 . . . 7 Max in Single Turn 3 | . 1 . . . 3 Machines Sabotaged . | . . . . . . Garrisons Compromised . | . . . . . . Overloaded Fab Kills . | . . . . . . Hacking | -11 -10 -10 -9 -9 -9 --------- Run | Scr Mat Min Mat Min Exi Machines Accessed 24 | . 9 1 13 . 1 Terminals 15 | . 6 . 9 . . Fabricators . | . . . . . . Repair Stations 3 | . 1 . 2 . . Recycling Units 3 | . 2 . 1 . . Scanalyzers 1 | . . . 1 . . Garrison Access . | . . . . . . Total Hacks 90 | . 35 1 53 . 1 Successful 56 | . 19 1 35 . 1 Failed 34 | . 16 . 18 . . Catastrophic 2 | . . . 2 . . Database Lockouts . | . . . . . . Manual 45 | . 23 . 21 . 1 Terminals 61 | . 25 . 36 . . Fabricators . | . . . . . . Repair Stations 16 | . 4 . 12 . . Recycling Units 9 | . 6 . 3 . . Scanalyzers 2 | . . . 2 . . Garrison Access . | . . . . . . Terminal Hacks 23 | . 7 1 14 . 1 Robot Analysis 8 | . 4 . 4 . . Prototype ID Bank 4 | . 1 . 3 . . Open Door 1 | . . 1 . . . Branch Access Points 2 | . 1 . 1 . . Emergency Access Points 1 | . . . 1 . . Locate Traps 3 | . . . 3 . . Reprogram Traps 1 | . . . 1 . . Hauler Manifests 2 | . 1 . 1 . . EX-Prototype ID Bank 1 | . . . . . 1 Fabricator Hacks . | . . . . . . Repair Station Hacks 16 | . 4 . 12 . . Scan Component 8 | . 2 . 6 . . Repair 8 | . 2 . 6 . . Recycling Unit Hacks 3 | . 2 . 1 . . Retrieve Components 3 | . 2 . 1 . . Scanalyzer 2 | . . . 2 . . Insert Component 1 | . . . 1 . . Analyze 1 | . . . 1 . . Garrison Access Hacks . | . . . . . . Unauthorized Hacks 12 | . 6 . 6 . . Terminals 9 | . 4 . 5 . . Track 2 | . . . 2 . . Botnet 6 | . 3 . 3 . . Operators 1 | . 1 . . . . Fabricators . | . . . . . . Repair Stations . | . . . . . . Recycling Units 3 | . 2 . 1 . . Tunnel 3 | . 2 . 1 . . Scanalyzers . | . . . . . . Garrison Access . | . . . . . . Data Cores Recovered . | . . . . . . Used . | . . . . . . Hacking Detections 18 | . 7 . 11 . . Full Trace Events 5 | . 3 . 2 . . Feedback Events 1 | . . . 1 . . Corruption 1 | . . . 1 . . Feedback Blocked . | . . . . . . Robot Schematics Acquired . | . . . . . . Robots Built . | . . . . . . Authchips . | . . . . . . Time . | . . . . . . Total Robot Build Rating . | . . . . . . Part Schematics Acquired 1 | . . . 1 . . Parts Built . | . . . . . . Authchips . | . . . . . . Time . | . . . . . . Total Part Build Rating . | . . . . . . Parts Repaired 8 | . 2 . 6 . . Time 232 | . 52 . 180 . . Parts Recycled . | . . . . . . Recycled Matter . | . . . . . . Retrieved Matter . | . . . . . . Retrieved Components 11 | . 1 . 10 . . Parts Scanalyzed 1 | . . . 1 . . Part Schematics Acquired 1 | . . . 1 . . Parts Damaged . | . . . . . . Bothacking | -11 -10 -10 -9 -9 -9 ------------ Run | Scr Mat Min Mat Min Exi Used RIF Installer . | . . . . . . Robots Hacked 4 | . . . . . 4 Non-combat 3 | . . . . . 3 Combat 1 | . . . . . 1 Robot Hacks Applied 4 | . . . . . 4 parse_system 4 | . . . . . 4 Relay Couplers Released . | . . . . . . Fabnet Peak Effective % . | . . . . . . Robots Rewired . | . . . . . . Allies Hacked . | . . . . . . Hacks Repelled . | . . . . . . Allies | -11 -10 -10 -9 -9 -9 -------- Run | Scr Mat Min Mat Min Exi Total Allies 3 | . . 3 . . . Largest Group 3 | . . 3 3 . . Highest-Rated Group 40 | . . 40 40 . . Highest-Rated Ally 16 | . . 16 16 . . Total Orders 1 | . . 1 . . . RETURN 1 | . . 1 . . . Ally Attacks 45 | . . . 28 . 17 Total Damage 419 | . . . 301 . 118 Kills 6 | . . . 6 . . Allies Corrupted . | . . . . . . Allies Melted 1 | . . . . 1 . Intel | -11 -10 -10 -9 -9 -9 ------- Run | Scr Mat Min Mat Min Exi Robot Analysis Total 8 | . 4 . 4 . . Derelict Logs Recovered 3 | . . 2 . 1 . Drone Launches 18 | . . 1 . . 17 Drone Recoveries 18 | . . 1 . . 17 Exploration | -11 -10 -10 -9 -9 -9 ------------- Run | Scr Mat Min Mat Min Exi Turns Passed 5890 | 72 1029 960 1737 1282 810 Spaces Moved 3147 | 45 631 627 809 689 346 Core 5 | 5 . . . . . Treads 2 | . 2 . . . . Legs . | . . . . . . Wheels 3140 | 40 629 627 809 689 346 Hover . | . . . . . . Flight . | . . . . . . Fastest Speed 50 | 50 100 105 135 140 145 Average Speed 131 | 101 106 130 138 142 145 Slowest Speed 240 | 150 240 145 190 145 145 Overloaded Moves . | . . . . . . Propulsion Burnouts . | . . . . . . Robots Hopped . | . . . . . . Cave-ins Triggered . | . . . . . . Exploration Rate (%) 73 | 4 98 99 82 90 70 Regions Visited 5 Branch Regions 3 Pre-discovered Areas 4 | . 2 1 1 . . Known Exits Taken 3 | . 1 1 1 . . Unknown Exits Taken 2 | 1 . . . 1 . Scrap Searched 3 | . . 1 . 2 . Spaces Dug 8 | . . . . . 8 Terrain Destroyed 46 | . . . . . 46 Melee . | . . . . . . Projectile . | . . . . . . AOE 46 | . . . . . 46 Terrain Rammed . | . . . . . . Walls Destroyed . | . . . . . . Machines Disabled . | . . . . . . Actions | -11 -10 -10 -9 -9 -9 --------- Run | Scr Mat Min Mat Min Exi Total 4300 | 61 860 715 1196 878 590 Wait 518 | . 79 18 190 110 121 Move 3142 | 44 630 626 808 688 346 Hop . | . . . . . . Pick Up 79 | 6 29 13 14 8 9 Fast Attach 22 | 6 3 3 10 . . Attach 36 | 1 9 3 6 3 14 Detach 18 | . 6 3 4 . 5 Swap 42 | . 11 8 17 2 4 Drop 66 | . 15 10 18 7 16 Fire 348 | 4 78 31 129 60 46 Melee 4 | . . . . . 4 Ram . | . . . . . . Kick 25 | . . . . . 25 Crush . | . . . . . . Escape Stasis . | . . . . . . Rewire . | . . . . . . Trap . | . . . . . . Miscellaneous . | . . . . . . Route ------- -11/Scrapyard -10/Materials (discovered 5 exits: *Mat x3 / *Min x2) -10/Mines (discovered 2 exits: *Mat x2) -9/Materials (discovered 4 exits: *Mat x2 / *Min x2) -9/Mines (discovered 4 exits: *Mat x2 / *Exi / [*Zio]) -9/Exiles (discovered 1 exit: [*Min]) History --------- Turn | Location | Event 18 | -11/Scrapyard | Discovered new exit (range 15) 73 | -11/Scrapyard | Entered Materials 289 | -10/Materials | Discovered new exit (range 15) 334 | -10/Materials | Build established: Mutant 506 | -10/Materials | Repaired Lgt. Assault Rifle 533 | -10/Materials | Repaired Ion Engine 610 | -10/Materials | Lost 4 parts (2n2w) 736 | -10/Materials | Discovered new exit (range 15) 761 | -10/Materials | Identified exit to Materials 796 | -10/Materials | Discovered new exit (range 14) 859 | -10/Materials | Identified exit to Mines 899 | -10/Materials | Discovered exit to Materials (range 8) 1102 | -10/Materials | Entered Mines 1184 | -10/Mines | Discovered exit to Materials (range 12) 1241 | -10/Mines | Joined a pair of Derelicts in attacking an 0b10 outpost 1345 | -10/Mines | Learned Materials interactive machine intel 1537 | -10/Mines | Core integrity fell below 50% 1582 | -10/Mines | Core integrity fell below 20% 1588 | -10/Mines | Discovered exit to Materials (range 9) 1755 | -10/Mines | Found the Drone Emporium 1763 | -10/Mines | Found Prototype Device 1763 | -10/Mines | Identified Splice Drone Bay 1805 | -10/Mines | Assisted by bots powering up and referring to "LRC-V3" 2000 | -10/Mines | Build established: Scavenger-Mutant 2062 | -10/Mines | Entered Materials 2062 | -9/Materials | Accompanied by 3 allies 2062 | -9/Materials | Evolved 2 slots: Utility x2 2063 | -9/Materials | Loaded intel: 18 interactive machine locations 2263 | -9/Materials | Identified exit to Mines 2336 | -9/Materials | Discovered new exit (range 12) 2511 | -9/Materials | Repaired Lgt. Assault Rifle 2538 | -9/Materials | Repaired Seismic Detector 3166 | -9/Materials | Discovered new exit (range 13) 3193 | -9/Materials | Identified exit to Materials 3253 | -9/Materials | Build established: Mutant 3627 | -9/Materials | Repaired Arm. Wheel 3673 | -9/Materials | Repaired Hvy. Assault Rifle 3707 | -9/Materials | Repaired Hvy. Assault Rifle 3740 | -9/Materials | Repaired Hrd. Light Armor Plating 3799 | -9/Materials | Entered Mines 3809 | -9/Mines | Deemed a non-threat by the Exiles lab entrance 3809 | -9/Mines | Discovered new exit (range 5) 3854 | -9/Mines | Met a Derelict bent on vengeance 3944 | -9/Mines | Discovered exit to Materials (range 9) 4069 | -9/Mines | Found a damaged Exp. Sensor Array with a note attached 4073 | -9/Mines | Found Prototype Device 4262 | -9/Mines | Learned Materials trap positions 4296 | -9/Mines | A weapon hastily lodged in a ceiling crevice suddenly fell to the ground 4401 | -9/Mines | A Derelict revealed a hidden shortcut to a safe place 4538 | -9/Mines | Excavation squad dispatched 4538 | -9/Mines | A large section of the Mines collapsed 4672 | -9/Mines | Core integrity fell below 50% 4880 | -9/Mines | Discovered exit to Materials (range 8) 5081 | -9/Mines | Entered Exiles 5102 | -9/Exiles | Discovered new exit (range 15) 5166 | -9/Exiles | Met 8R-AWN 5191 | -9/Exiles | Met EX-HEX 5268 | -9/Exiles | Met EX-DEC 5322 | -9/Exiles | Met EX-BIN 5344 | -9/Exiles | Aligned with FarCom system 5345 | -9/Exiles | Given EX-Vault access code 5381 | -9/Exiles | Opened EX-Vault 5396 | -9/Exiles | Found Potential Leg 5398 | -9/Exiles | Found Potential Leg 5405 | -9/Exiles | Found AWS/Gauss 5437 | -9/Exiles | Warned to stay clear of 0b10 Research branches 5667 | -9/Exiles | Attacked by the Exiles 5821 | -9/Exiles | Core integrity fell below 20% 5822 | -9/Exiles | Lost 6 parts (1p3u2w) 5888 | -9/Exiles | Lost 5 parts (2n1u2w) 5891 | -9/Exiles | Destroyed by 8R-AWN with 8R-AWN's Boregun Last Messages --------------- 05879_ Kicked 8R-AWN. 05881_ Kicked 8R-AWN out of the way. 05882_ Penetrated by HV Slug. 05882_ HV Slug penetrates Wall. 05882_ Penetrated by HV Slug. 05882_ HV Slug penetrates Wall. 05883_ Kicked 8R-AWN. 05886_ Kicked 8R-AWN out of the way. 05887_ Penetrated by HV Slug. 05887_ HV Slug penetrates Earth. 05887_ Penetrated by HV Slug. 05887_ HV Slug penetrates Earth. 05888_ Kicked 8R-AWN. 05888_ 8R-AWN knocked back. 05889_ Kicked 8R-AWN. 05889_ 8R-AWN knocked back. 05890_ Kicked 8R-AWN out of the way. 05891_ Penetrated by HV Slug. 05891_ HV Slug penetrates Earth. 05891_ Penetrated by HV Slug. Map ----- +----------------------------------------------------+ | ?????????????????????????????????????????????????? | | ?????????????????????????????????????????????????? | | ?????????????????????????????????????????????????? | | ?????????????????????????????????????????????????? | | ?????????????????????????????????????????????????? | | ?????????????????????????????????????????????????? | | ?????????????????????????????????????????????????? | | ?????????????????????????????????????????????????? | | ?????????????????????????????????????????????????? | | ?????????????????????????????????????????????????? | | ?????????????????????????????????????????????????? | | ?????????????????????????????????????????????????? | | ?????????????????????????????????????????????????? | | ?????????????????????????????????????????????????? | | ?????????????????????????????????????????????????? | | ????????????? ??????????????????????????????????? | | ????????????? ?????????????????????????????????? | | ???????????? ?????????????#######????????????? | | ???????? ??? ######???????#!!! "#????????????? | | ????????? ?? #""##?????# "#????????????? | | ?????????? #? #?????# "#????????????? | | ??????????# ##" ##???## ""#????????????# | | ???????????#""" #####" "#???????????? | | ????????????#"## ## "###??????????" | | ?????????????# ## g #" #?????????" | | ??????????????# #??# @ # ????????"" | | ???????????????#"#?#### # # #????????"" | | ????????????????# # ?## # ##???????? | | ????????????????##"###; #????????" | | ???????????###### !! " ##?????????# | | ???????????# "! ! # #####???### | | ???????????######! ## % ""#####X# | | ????????????????#! # = | | ???????????????#; """ ##"# | | ???????????????#;######## ######## * | | ??????????????# #???????### #?????##; | | ??????????????##???????????##???????### | | ??????????????????????????????????????## | | ???????????????????????????????????????## | | ????????????????????????????????????????##" | | ?????????????????????????????????????????#""" | | ????????????????????????????????????????##" | | ????????????????????????????????????????#"" | | ???????????????????????????????????????##""" | | ???????????????????????????????????????#""" | | ???????????????????????????????????????#""" | | ???????????????????????????????????????#"" | | ???????????????????????????????????????#""" | | ???????????????????????????????????????#"" | | ???????????????????????????????????????##"" | +----------------------------------------------------+ Best States ------------- Heat Dissipation 42 Energy Generation 14 Energy Capacity 280 Matter Stores 300 Matter Capacity 300 Sight Range 16 Terrain Scan Density 10 Armor Coverage 300 Core Shielding 20 Weapon Shielding 33 Evasion (%) 40 Recoil Reduction 2 Salvage Targeting 1 Item Schematics ----------------- Hacking Suite | -9/Materials | Scanalyzed Robot Schematics ------------------ None Fabricated ------------ Nothing Alien Tech Used ----------------- None Achievements -------------- None Challenges ------------ None Game ------ Seed SuperchargedDynamicMatrix Manual? 0 Play Time 00:52:46 Cumulative 511.7 hours Start 2022.05.27 @ 12:57:52 End 2022.05.27 @ 13:47:51 Sessions 1 Manual Loads 0 Difficulty Rogue Special Mode None Game No. 420 Rogue 420 Adventurer 0 Explorer 0 Win Type - Total 3 Types 2/0/0/1/0/0/0/0/0 Lore% 70 Gallery% 82 Achievement% 66 Wizard Run 0 Options --------- ASCII 0 Keyboard 1 Movement Numpad Keybinds 0 Fullscreen 1 Font 12/Terminus Map View 83x54 Tactical HUD 1 Map Filters NONE Filters NONE Steam 1 RUN: 5708765f-8d38-4f3f-b909-6e0fe12bcf4b